{"text_format":"1","workbook":"xlsx","n_sheets":4,"sheets":["CLASSIFICAÇÃO GERAL 2024","out2024","nov2024","dez2024"],"not_rendered":{"charts":0,"images":2,"macros":1,"external_links":0,"defined_names":1,"comments":0,"pivot_tables":0},"unopened":[],"bounds":{"document_bytes":16777216,"sheet_cells":100000,"rows_first":2000,"rows_last":500,"rows_between":2000,"halvings":0,"cell_chars":16384,"cell_head_chars":4096},"cells_cut":0,"cells_raw":0,"read":"whole","date_system":"1900"}

{"sheet":"CLASSIFICAÇÃO GERAL 2024","index":0,"n_rows":144,"n_cols":5,"rows_kept":144,"cut":false,"hidden":false,"merged":[[0,0,0,4],[1,0,1,4]]}
["CLASSIFICAÇÃO GERAL ACPA – TEMPORADA 2024 DOMINGO"]
["COLEIRO FIBRA","Pássaro","Proprietário","Origem","Pontos"]
["POSIÇÃO","NOME DO PÁSSARO","NOME DO PROPRIETÁRIO","ORIGEM (CIDADE)","PONTUAÇÃO"]
["1º","REI DO FURDUNÇO","WILLIAN","TRÊS RIOS",{"$f":"12+3+8+20+6+20+25+25+14+17+20","v":170}]
["2º","LAMPIÃO","LUIS/ZECA","PATY DO ALFERES",{"$f":"25+30+25+25+20","v":125}]
["3º","MALVADÃO","RODRIGO GONÇALVES","PETRÓPOLIS",{"$f":"12+10+25+3+14+6+12+10+12+3","v":107}]
["4º","TIK TOK","RAFAEL","BARBACENA",{"$f":"30+30+30","v":90}]
["5º","IMPÉRIO","LUIZINHO","PETRÓPOLIS",{"$f":"20+6+20+6+8+10","v":70}]
["6º","WALTER","JONAS RICARDO","TRÊS RIOS",{"$f":"8+8+17+14+4","v":51}]
["7º","MAGO","RAMON/YGOR","ANTA",{"$f":"17+30","v":47}]
["8º","TREM","GABRIEL/CORELIO","PARAÍBA DO SUL",{"$f":"5+30+12","v":47}]
["9º","EL CHAPO","RAFAEL","BARBACENA",{"$f":"25+3+14","v":42}]
["10º","HORUS","FAMÍLIA HONORATO","PARAÍBA DO SUL",{"$f":"1+10+17+7+7","v":42}]
["11º","PROFETA","ITALLO","PARAÍBA DO SUL",{"$f":"30+8","v":38}]
["12º","FAVELA","CABRITO/GABRIEL","MATIAS BARBOSA",{"$f":"12+25","v":37}]
["13º","VINGADOR","SILVINHO","SANTOS DUMONT",{"$f":"25+12","v":37}]
["14º","REALEZA","VINÍCIUS","AREAL",{"$f":"12+17+7","v":36}]
["15º","VENOM","MURILO","TRÊS RIOS",{"$f":"5+5+7+3+12","v":32}]
["16º","MATADOR","GABRIEL MARTINS","PARAÍBA DO SUL",{"$f":"14+17","v":31}]
["17º","OROCHI","NATHAN","LEVY GASPARIAN",{"$f":"14+17","v":31}]
["18º","BOLT","RUAN","MAR DE ESPANHA",30]
["19º","BRUXO","WERCOLES","ALÉM PARAÍBA",30]
["20º","GATILHO","JUNINHO","SAPUCAIA",30]
["21º","LAMBADA","DANIEL","TRÊS RIOS",30]
["22º","MAVERICK","MARCÃO","JUIZ DE FORA",30]
["23º","FURIOSO","LI","BARBACENA",{"$f":"17+12","v":29}]
["24º","JAMELÃO","FAMÍLIA MINGAL","PARAÍBA DO SUL",{"$f":"2+5+1+20","v":28}]
["25º","FABULOSO","ERICK DINO","MATIAS BARBOSA",{"$f":"25+1","v":26}]
["26º","TREME TERRA","JOÃO MARCOS","AREAL",{"$f":"14+12","v":26}]
["27º","PARDAL","FAMÍLIA MINGAL","PARAÍBA DO SUL",25]
["28º","RELÂMPAGO","LI","BARBACENA",{"$f":"20+5","v":25}]
["29º","ROMÁRIO","MÁRCIO","PARAÍBA DO SUL",{"$f":"8+17","v":25}]
["30º","SPARTA","RAFAEL RODRIGUES","PETRÓPOLIS",25]
["31º","CASCAVEL","BRUNO BRANCO","PETRÓPOLIS",{"$f":"4+14+6","v":24}]
["32º","ARQUEIRO","GILSON","SANTOS DUMONT",20]
["33º","ÊXTASE","KLEBER","AREAL",20]
["34º","NARUTO","MARCIO MOREIRA","TRÊS RIOS",20]
["35º","SAGAT","REINALDO","JUIZ DE FORA",20]
["36º","TADALA","GABRIEL BRUM","PATY DO ALFERES",{"$f":"2+12+4","v":18}]
["37º","JOIA RARA","REINALDO","BARBACENA",17]
["38º","PELÉ","ANTERO/WILLIAN","TRÊS RIOS",17]
["39º","PIRATA","ERICK","MATIAS BARBOSA",17]
["40º","FANTÁSTICO","JOSÉ SERGIO","PARAÍBA DO SUL",{"$f":"4+4+7","v":15}]
["41º","CHUCALHO DE COBRA","LUCIMAR/LUIZ HENRIQUE","TRÊS RIOS",14]
["42º","MALUCO","VANDERSON","JUIZ DE FORA",14]
["43º","MATUÊ","RODRIGO GONÇALVES","PETRÓPOLIS",{"$f":"6+8","v":14}]
["44º","PAÇOCA","FLÁVIO","PATY DO ALFERES",14]
["45º","PRÍNCIPE","FAMÍLIA HONORATO","PARAÍBA DO SUL",{"$f":"8+6","v":14}]
["46º","RELÂMPAGO","JUNINHO","SAPUCAIA",14]
["47º","ADRENALINA","PABLO","PETRÓPOLIS",{"$f":"2+10","v":12}]
["48º","PEPE","EULER","TRÊS RIOS",{"$f":"1+2+7+2","v":12}]
["49º","AMOSTRADINHO","GABRIEL MARTINS","PARAÍBA DO SUL",10]
["50º","BAIXARIA","RAUANI VALLE","TRÊS RIOS",10]
["51º","BMW","JOÃO PEDRO","PARAÍBA DO SUL",10]
["52º","PÂNICO","JUNIN","JUIZ DE FORA",10]
["53º","ROBOCOP","TROPA DO MORRO","ALÉM PARAÍBA",10]
["54º","SIMÃO 835","SIMÃO KALIFE","TRÊS RIOS",10]
["55º","TO LOUCO","ÍCARO DIAS","PARAÍBA DO SUL",10]
["56º","HIANK","PENA BRANCA","JUIZ DE FORA",8]
["57º","REI DA RUA","ANDRÉ LUIS","PARAÍBA DO SUL",8]
["58º","SOBRENATURAL","FAMÍLIA MINGAL","PARAÍBA DO SUL",8]
["59º","SONIC","JANDERSON","TRÊS RIOS",8]
["60º","DOIDO","WILLIAM","TRÊS RIOS",7]
["61º","SHEIK","JONAS RICARDO","TRÊS RIOS",7]
["62º","SONIC","ARTHUR","JUIZ DE FORA",7]
["63º","VINTE DOIS","ALISSON","TRÊS RIOS",7]
["64º","XARADA","FAMÍLIA MINGAL","PARAÍBA DO SUL",7]
["65º","ABUTRE","HELENILTON/FELIPE BIÓLOGO","JUIZ DE FORA/MATIAS BARBOSA",6]
["66º","JHON NETO","MATHEUS/JEFERSON","PARAÍBA DO SUL",6]
["67º","LOCOMOTIVA","CLOVIS/RODRIGO","TRÊS RIOS",6]
["68º","MANDA CHUVA","LUIS/ZECA","PATY DO ALFERES",{"$f":"2+4","v":6}]
["69º","MEGAMENTE","FLÁVIO","MIGUEL PEREIRA",6]
["70º","PROFESSOR","FAMÍLIA MINGAL","PARAÍBA DO SUL",6]
["71º","AMOSTRADINHO","PAULINHO","TRÊS RIOS",5]
["72º","CABALA","SANDRINHO","TRÊS RIOS",5]
["73º","CABALLO","GILSON","SANTOS DUMONT",5]
["74º","CARTOLA","FABIANO","TRÊS RIOS",5]
["75º","DONO DA FESTA","MARCELO","PETRÓPOLIS",5]
["76º","FAÍSCA","SÍLVIO","SANTOS DUMONT",5]
["77º","MOSTRINHO","VITINHO","MATIAS BARBOSA",5]
["78º","PROFESSOR","RODRIGO GONÇALVES","PETRÓPOLIS",{"$f":"2+3","v":5}]
["79º","TUBARÃO","MAURO JR","TRÊS RIOS",{"$f":"2+3","v":5}]
["80º","CARA PRETA","FÁBIO","TRÊS RIOS",4]
["81º","GIGOLO","CABRITO","MATIAS BARBOSA",4]
["82º","MARRETA","GUTO","PARAÍBA DO SUL",4]
["83º","PALADINO","LUCAS","TRÊS RIOS",4]
["84º","PÂNICO","JUNINHO","TRÊS RIOS",4]
["85º","SINISTRO","MATEUS MEDEIROS","PARAÍBA DO SUL",4]
["86º","BARRA PESADA","HENRIQUE","TRÊS RIOS",3]
["87º","BOLT","ALEXANDRE SOUZA","AGUIAR",3]
["88º","LA PULGA","VINÍCIUS","MAR DE ESPANHA",3]
["89º","MAGO","SÍLVIO","SANTOS DUMONT",3]
["90º","PESADELO","ALEX LAMA","PARAÍBA DO SUL",3]
["91º","CORINGA","ERICK","MATIAS BARBOSA",2]
["92º","PALHAÇO","PAULINHO","TRÊS RIOS",2]
["93º","RENEGADO","DEIVID","JUIZ DE FORA",2]
["94º","SCOOBY","?","?",2]
["95º","007","GUSTAVO","TRÊS RIOS",1]
["96º","FURIOSO","MARCELO","PETRÓPOLIS",1]
["97º","GAGUINHO","LUCIMAR/LUIZ HENRIQUE","TRÊS RIOS",1]
["98º","LOUCURA","WAGNER","ALÉM PARAÍBA",1]
["99º","MUTUM","MARCELO","SANTOS DUMONT",1]
["100º","PODEROSO CHEFINHO","BRUNO BRANCO","PETRÓPOLIS",1]
["101º","VIOLENTO","WALTER MORELI","PETRÓPOLIS",1]
["102º"]
["103º"]
["104º"]
["105º"]
["106º"]
["107º"]
["108º"]
["109º"]
["110º"]
["111º"]
["112º"]
["113º"]
["114º"]
["115º"]
["116º"]
["117º"]
["118º"]
["119º"]
["120º"]
["121º"]
["122º"]
["123º"]
["124º"]
["125º"]
["126º"]
["127º"]
["128º"]
["129º"]
["130º"]
["131º"]
["132º"]
["133º"]
["134º"]
["135º"]
["135º"]
["136º"]
["137º"]
["138º"]
["139º"]
["140º"]

{"sheet":"out2024","index":1,"n_rows":42,"n_cols":27,"rows_kept":42,"cut":false,"hidden":false,"merged":[[0,7,0,12],[0,14,0,19],[0,0,0,5],[0,21,0,26]]}
["06/10/2024 (DOMINGO)",null,null,null,null,null,null,"13/10/2024 (Domingo)",null,null,null,null,null,null,"20/10/2024 (Domingo)\n",null,null,null,null,null,null,"27/10/2024 (DOMINGO)"]
["POS.","PÁSSARO","PROPRIETÁRIO","ORIGEM","CANTOS","PONTOS",null,"POS.","PÁSSARO","PROPRIETÁRIO","ORIGEM","CANTOS","PONTOS",null,"POS.","PÁSSARO","PROPRIETÁRIO","ORIGEM","CANTOS","PONTOS",null,"POS.","PÁSSARO","PROPRIETÁRIO","ORIGEM","CANTOS","PONTOS"]
["1º","TIK TOK","RAFAEL","BARBACENA",201,30,null,"1º","TIK TOK","RAFAEL","BARBACENA","175/285",30,null,"1º","PROFETA","ITALLO","PARAÍBA DO SUL","125/188",30,null,"1º","LAMPIÃO","LUIS/ZECA","PATY DO ALFERES","153/183",30]
["2º","EL CHAPO","RAFAEL","BARBACENA",176,25,null,"2º","SPARTA","RAFAEL RODRIGUES","PETRÓPOLIS","126/204",25,null,"2º","LAMPIÃO","LUIS/ZECA","PATY DO ALFERES","130/175",25,null,"2º","MALVADÃO","RODRIGO GONÇALVES","PETRÓPOLIS","106/159",25]
["3º","RELÂMPAGO","LI","BARBACENA",167,20,null,"3º","SAGAT","REINALDO","JUIZ DE FORA","133/190",20,null,"3º","IMPÉRIO","LUIZINHO","PETRÓPOLIS","94/167",20,null,"3º","REI DO FURDUNÇO","WILLIAN","TRÊS RIOS","113/158",20]
["4º","FURIOSO","LI","BARBACENA",161,17,null,"4º","OROCHI","NATHAN","LEVY GASPARIAN","82/186",17,null,"4º","ROMÁRIO","MÁRCIO","PARAÍBA DO SUL","118/164",17,null,"4º","HORUS","FAMÍLIA HONORATO","PARAÍBA DO SUL","113/146",17]
["5º","OROCHI","NATHAN","LEVY GASPARIAN",151,14,null,"5º","TREME TERRA","JOÃO MARCOS","AREAL","102/173",14,null,"5º","CASCAVEL","BRUNO BRANCO","PETRÓPOLIS","128/163",14,null,"5º","RELÂMPAGO","JUNINHO","SAPUCAIA","126/125",14]
["6º","REI DO FURDUNÇO","WILLIAN","TRÊS RIOS",142,12,null,"6º","FAVELA","CABRITO/GABRIEL","MATIAS BARBOSA","84/161",12,null,"6º","MALVADÃO","RODRIGO GONÇALVES","PETRÓPOLIS","107/163",12,null,"6º","TREME TERRA","JOÃO MARCOS","AREAL","113/125",12]
["7º","MALVADÃO","RODRIGO GONÇALVES","PETRÓPOLIS",139,10,null,"7º","PÂNICO","JUNIN","JUIZ DE FORA","63/155",10,null,"7º","HORUS","FAMÍLIA HONORATO","PARAÍBA DO SUL","131/161",10,null,"7º","TO LOUCO","ÍCARO DIAS","PARAÍBA DO SUL","88/125",10]
["8º","ROMÁRIO","MÁRCIO","PARAÍBA DO SUL",137,8,null,"8º","HIANK","PENA BRANCA","JUIZ DE FORA","56/150",8,null,"8º","REI DO FURDUNÇO","WILLIAN","TRÊS RIOS","109/159",8,null,"8º","PROFETA","ITALLO","PARAÍBA DO SUL","111/123",8]
["9º","SONIC","ARTHUR","JUIZ DE FORA",135,7,null,"9º","?","LUIZINHO","PETRÓPOLIS","69/148",7,null,"9º","SHEIK","JONAS RICARDO","TRÊS RIOS","81/155",7,null,"9º","VINTE DOIS","ALISSON","TRÊS RIOS","61/122",7]
["10º","MEGAMENTE","FLÁVIO","MIGUEL PEREIRA",134,6,null,"10º","ABUTRE","HELENILTON/FELIPE BIÓLOGO","JUIZ DE FORA/MATIAS BARBOSA","128/143",6,null,"10º","LOCOMOTIVA","CLOVIS/RODRIGO","TRÊS RIOS","144/123",6,null,"10º","IMPÉRIO","LUIZINHO","PETRÓPOLIS","129/121",6]
["11º","FAÍSCA","SÍLVIO","SANTOS DUMONT",130,5,null,"11º","TREM","GABRIEL/CORELIO","PARAÍBA DO SUL","77/143",5,null,"11º","DONO DA FESTA","MARCELO","PETRÓPOLIS","66/121",5,null,"11º","RELÂMPAGO","LI","BARBACENA","98/120",5]
["12º","PÂNICO","JUNINHO","TRÊS RIOS",130,4,null,"12º","CASCAVEL","BRUNO BRANCO","PETRÓPOLIS","100/142",4,null,"12º","FANTÁSTICO","JOSÉ SERGIO","PARAÍBA DO SUL","60/111",4,null,"12º","SINISTRO","MATEUS MEDEIROS","PARAÍBA DO SUL","78/114",4]
["13º","MAGO","SÍLVIO","SANTOS DUMONT",129,3,null,"13º","REI DO FURDUNÇO","WILLIAN","TRÊS RIOS","101/140",3,null,"13º","BOLT","ALEXANDRE SOUZA","AGUIAR","83/110",3,null,"13º","EL CHAPO","RAFAEL","BARBACENA","117/113",3]
["14º","TADALA","GABRIEL BRUM","PATY DO ALFERES",125,2,null,"14º","ADRENALINA","PABLO","PETRÓPOLIS","109/134",2,null,"14º","TUBARÃO","MAURO JR","TRÊS RIOS","88/104",2,null,"14º","SCOOBY","?","?","102/113",2]
["15º","FABULOSO","DINO","MATIAS BARBOSA",121,1,null,"15º","HORUS","FAMÍLIA HONORATO","PARAÍBA DO SUL","108/128",1,null,"15º","FURIOSO","MARCELO","PETRÓPOLIS","57/95",1,null,"15º","PEPE","EULER","TRÊS RIOS","86/113",1]
["16º","?","EDER","?",116,null,null,"16º","AMOSTRADINHO","PAULINHO","TRÊS RIOS","70/122",null,null,"16º","MARGINAL","BRUNO","TRÊS RIOS","52/87",null,null,"16º","SAGAT","GUSTAVO","PARAÍBA DO SUL","52/110"]
["17º","MENINO MALUCO","BRUNO RAPHAEL","TRÊS RIOS",115,null,null,"17º","PANTERA","EDER","TRÊS RIOS","102/120",null,null,"17º","MALVADÃO","RAFAEL","PETRÓPOLIS","76/84",null,null,"17º","PANTERA","EDER","TRÊS RIOS","143/108"]
["18º","MARGINAL","BRUNO","TRÊS RIOS",105,null,null,"18º","TUBARÃO","MAURO JR","TRÊS RIOS","84/115",null,null,"18º","PARDAL","FAMÍLIA MINGAL","PARAÍBA DO SUL","45/84",null,null,"18º","MALUCO","GIBA","TRÊS RIOS","55/107"]
["19º","ADRENALINA","PABLO","PETRÓPOLIS",102,null,null,"19º","TORPEDO","SANDRINHO","TRÊS RIOS","70/106",null,null,"19º","MANDA CHUVA","LUIS/ZECA","PATY DO ALFERES","44/82",null,null,"19º","PRÍNCIPE","FAMÍLIA HONORATO","PARAÍBA DO SUL","92/105"]
["20º","RAMBO","SÍLVIO","SANTOS DUMONT",98,null,null,"20º","VENON","MURILO","TRÊS RIOS","75/105",null,null,"20º","FERRARI","REGINALDO","PETRÓPOLIS","71/81",null,null,"20º","FANTÁSTICO","JOSÉ SERGIO","PARAÍBA DO SUL","79/104"]
["21º","ASTRO","FAMÍLIA MINGAL","PARAÍBA DO SUL",95,null,null,"21º","BATIDÃO","SANDRINHO","TRÊS RIOS","63/102",null,null,"21º","D MENOR","UILIAN LUTZ","PETRÓPOLIS","31/74",null,null,"21º","LARANJA","JONAS","TRÊS RIOS","85/100"]
["22º","TUBARÃO","MAURO JR","TRÊS RIOS",95,null,null,"22º","MALVADÃO","RODRIGO GONÇALVES","PETRÓPOLIS","110/94",null,null,"22º","PELÉ","WILLIAM","TRÊS RIOS","88/71",null,null,"22º","MANDA CHUVA","LUIS/ZECA","PATY DO ALFERES","90/93"]
["23º","FIOTI","FAMÍLIA MINGAL","PARAÍBA DO SUL",94,null,null,"23º","EXAGERADO","GABRIEL/MARLON","PARAÍBA DO SUL","BANHO/94",null,null,"23º","PLAYBOY","JESSÉ JÚNIOR","TRÊS RIOS","76/71",null,null,"23º","BUDDY POKER","PEZAO","TRÊS RIOS","63/91"]
["24º","LOUCURA","WAGNER","?",92,null,null,"24º","DA ROÇA","PAULO","PATY DO ALFERES","66/93",null,null,"24º","ALEGRIA","FAMÍLIA HONORATO","PARAÍBA DO SUL","63/69",null,null,"24º","MAMBA NEGRA","REINALDO","BARBACENA","83/90"]
["25º","MANDA CHUVA","GABRIEL/VLADIMIR","PARAÍBA DO SUL",90,null,null,"25º","ALEGRIA","FAMÍLIA HONORATO","PARAÍBA DO SUL","82/83",null,null,"25º","BUDDY POKER","PEZAO","TRÊS RIOS","66/66",null,null,"25º","CEIFADOR","LI","BARBACENA","115/88"]
["26º","CABALA","FÁBIO","TRÊS RIOS",84,null,null,"26º","XANDÃO","LI","BARBACENA","31/81",null,null,"26º","V6","MARCUS VINICIUS","PARAÍBA DO SUL","56/60",null,null,"26º","PLAY BOY","JESSÉ JÚNIOR","TRÊS RIOS","85/88"]
["27º","CORINGA","CÁSSIO","TRÊS RIOS",72,null,null,"27º","FANTÁSTICO","JOSÉ SÉRGIO","PARAÍBA DO SUL","99/76",null,null,"27º","FUGITIVO","FLÁVIO","PATY DO ALFERES","112/57",null,null,"27º","PESADELO","ALEX LAMA","PARAÍBA DO SUL","86/85"]
["28º","GREGO","ALEXANDRE","SOUZA AGUIAR",60,null,null,"28º","PÂNICO","JUNINHO","TRÊS RIOS","106/68",null,null,"28º","PISTOLEIRO","BRUNO BRANCO","PETRÓPOLIS","99/57",null,null,"28º","TADALA","GABRIEL BRUM","AVELAR","48/85"]
["29º","FUMAÇA","SÍLVIO","SANTOS DUMONT",57,null,null,"29º","CARIOQUINHA","JONAS RICARDO","TRÊS RIOS","75/68",null,null,"29º","MEGAMENTE","FLÁVIO","PATY DO ALFERES","83/45",null,null,"29º","PEPE","GILSON/GUSTAVO","SANTOS DUMONT/TRÊS RIOS","102/79"]
["30º","SON GOKU","CARLOS","PARAÍBA DO SUL",56,null,null,"30º","TORETTO","GLEISSON/EDI WILSON","PETRÓPOLIS","56/63",null,null,"30º","MALUCO","GIBA","TRÊS RIOS","48/26",null,null,"30º","MANDEI","FABINHO","TRÊS RIOS","88/79"]
["31º","MALUCO","GIBA","TRÊS RIOS",52,null,null,"31º","MEGAMENTE","FLÁVIO","PATY DO ALFERES","54/60",null,null,"31º","VIOLENTO","WALTER MORELI","PETRÓPOLIS","68/22",null,null,"31º","TUBARÃO","MAURO JR","TRÊS RIOS","93/78"]
["32º","FANTÁSTICO","JOSÉ SERGIO","PARAÍBA DO SUL",48,null,null,"32º","BUDDY POKER","PEZAO","TRÊS RIOS","69/56",null,null,"32º",null,null,null,null,null,null,"32º","CEROL","FAMÍLIA HONORATO","PARAÍBA DO SUL","60/78"]
["33º","MAMBA NEGRA","DINO","MATIAS BARBOSA",35,null,null,"33º","ESCÂNDALO","ROMÁRIO","PETRÓPOLIS","87/52",null,null,"33º",null,null,null,null,null,null,"33º","FURIOSO","LI","BARBACENA","80/77"]
["34º",null,null,null,null,null,null,"34º","SOBRENATURAL","FAMÍLIA MINGAL","PARAÍBA DO SUL","47/41",null,null,"34º",null,null,null,null,null,null,"34º","ASTRO","FAMÍLIA MINGAL","PARAÍBA DO SUL","47/70"]
["35º",null,null,null,null,null,null,"35º","MALAGUETA","MURILO","MORRO AZUL","63/30",null,null,"35º",null,null,null,null,null,null,"35º","MC DONALD'S","JESSÉ JÚNIOR","TRÊS RIOS","53/65"]
["36º",null,null,null,null,null,null,"36º","SHAIK","JONAS RICARDO","TRÊS RIOS","90/20",null,null,"36º",null,null,null,null,null,null,"36º","PARDAL","JOÃOZINHO","TRÊS RIOS","45/63"]
["37º",null,null,null,null,null,null,"37º",null,null,null,null,null,null,"37º",null,null,null,null,null,null,"37º","TURBINADO","CAIO","PATY DO ALFERES","52/62"]
["38º",null,null,null,null,null,null,"38º",null,null,null,null,null,null,"38º",null,null,null,null,null,null,"38º","BLACKOUT","LUCAS","BEMPOSTA","57/57"]
["39º",null,null,null,null,null,null,"39º",null,null,null,null,null,null,"39º",null,null,null,null,null,null,"39º","JAMELAO","FAMÍLIA MINGAL","PARAÍBA DO SUL","52/56"]
["40º",null,null,null,null,null,null,"40º",null,null,null,null,null,null,"40º",null,null,null,null,null,null,"40º","AZ DE COPAS","RODINELI","TRÊS RIOS","41/31"]

{"sheet":"nov2024","index":2,"n_rows":44,"n_cols":27,"rows_kept":44,"cut":false,"hidden":false,"merged":[[0,0,0,5],[0,7,0,12],[0,14,0,19],[0,21,0,26]]}
["03/11/2024 (Domingo)",null,null,null,null,null,null,"10/11/2024 (Domingo)",null,null,null,null,null,null,"17/11/2024 (Domingo)",null,null,null,null,null,null,"24/11/2024 (Domingo)"]
["POS.","PÁSSARO","PROPRIETÁRIO","ORIGEM","CANTOS","PONTOS",null,"POS.","PÁSSARO","PROPRIETÁRIO","ORIGEM","CANTOS","PONTOS",null,"POS.","PÁSSARO","PROPRIETÁRIO","ORIGEM","CANTOS","PONTOS",null,"POS.","PÁSSARO","PROPRIETÁRIO","ORIGEM","CANTOS","PONTOS"]
["1º","TIK TOK","RAFAEL","BARBACENA","187/331",30,null,"1º","MAGO","RAMON/YGOR","ANTA","85/138",30,null,"1º","TREM","MARCO AURÉLIO","PARAÍBA DO SUL","85/212",30,null,"1º","BRUXO","WERCOLES","ALÉM PARAÍBA","209/331",30]
["2º","LAMPIÃO","LUIS/ZECA","PATY DO ALFERES","147/184",25,null,"2º","VINGADOR","SILVINHO","SANTOS DUMONT","97/131",25,null,"2º","LAMPIÃO","LUIS/ZECA","PATY DO ALFERES","127/189",25,null,"2º","REI DO FURDUNÇO","WILLIAN","TRÊS RIOS","105/191",25]
["3º","IMPÉRIO","LUIZINHO","PETRÓPOLIS","144/182",20,null,"3º","ARQUEIRO","GILSON","SANTOS DUMONT","80/123",20,null,"3º","REI DO FURDUNÇO","WILLIAN","TRÊS RIOS","107/170",20,null,"3º","ÊXTASE","KLEBER","AREAL","147/162",20]
["4º","MAGO","RAMON/YGOR","ANTA","120/181",17,null,"4º","JOIA RARA","REINALDO","BARBACENA","57/117",17,null,"4º","REALEZA","VINÍCIUS","AREAL","95/159",17,null,"4º","WALTER","JONAS RICARDO","TRÊS RIOS","115/162",17]
["5º","EL CHAPO","RAFAEL","BARBACENA","142/167",14,null,"5º","MALVADÃO","RODRIGO GONÇALVES","PETRÓPOLIS","75/111",14,null,"5º","MATADOR","GABRIEL MARTINS","PARAÍBA DO SUL","52/158",14,null,"5º","PAÇOCA","FLAVIO","PATY DO ALFERES","67/152",14]
["6º","FURIOSO","LI","BARBACENA","120/152",12,null,"6º","REALEZA","VINÍCIUS","AREAL","72/109",12,null,"6º","TADALA","GABRIEL BRUM","AVELAR","129/157",12,null,"6º","TREM","MARCO AURÉLIO","PARAÍBA DO SUL","122/151",12]
["7º","ADRENALINA","PABLO","PETRÓPOLIS","94/146",10,null,"7º","SIMÃO 835","SIMÃO KALIFE","TRÊS RIOS","70/109",10,null,"7º","AMOSTRADINHO","GABRIEL MARTINS","PARAÍBA DO SUL","88/157",10,null,"7º","ROBOCOP","TROPA DO MORRO","ALÉM PARAÍBA","81/140",10]
["8º","PRÍNCIPE","FAMÍLIA HONORATO","PARAÍBA DO SUL","93/141",8,null,"8º","WALTER","JONAS RICARDO","TRÊS RIOS","130/108",8,null,"8º","WALTER","JONAS RICARDO","TRÊS RIOS","105/155",8,null,"8º","IMPÉRIO","LUIZINHO","PETRÓPOLIS","97/120",8]
["9º","HORUS","FAMÍLIA HONORATO","PARAÍBA DO SUL","93/133",7,null,"9º","FANTÁSTICO","JOSÉ SERGIO","PARAÍBA DO SUL","75/106",7,null,"9º","HORUS","FAMÍLIA HONORATO","PARAÍBA DO SUL","92/145",7,null,"9º","REALEZA","VINÍCIUS","AREAL","70/119",7]
["10º","REI DO FURDUNÇO","WILLIAN","TRÊS RIOS","97/123",6,null,"10º","PRÍNCIPE","FAMÍLIA HONORATO","PARAÍBA DO SUL","83/102",6,null,"10º","IMPÉRIO","LUIZINHO","PETRÓPOLIS","105/140",6,null,"10º","MALVADÃO","RODRIGO GONÇALVES","PETRÓPOLIS","93/117",6]
["11º","AMOSTRADINHO","PAULINHO","TRÊS RIOS","55/119",5,null,"11º","VENON","MURILO","TRÊS RIOS","92/101",5,null,"11º","JAMELÃO","FAMÍLIA MINGAL","PARAÍBA DO SUL","85/135",5,null,"11º","VENOM","MURILO","TRÊS RIOS","107/112",5]
["12º","FANTÁSTICO","JOSÉ SERGIO","PARAÍBA DO SUL","103/117",4,null,"12º","CARA PRETA","FÁBIO","TRÊS RIOS","53/100",4,null,"12º","MANDA CHUVA","LUIS/ZECA","PATY DO ALFERES","95/125",4,null,"12º","TADALA","GABRIEL BRUM","AVELAR","148/111",4]
["13º","MALVADÃO","RODRIGO GONÇALVES","PETRÓPOLIS","97/117",3,null,"13º","TUBARÃO","MAURO JR","TRÊS RIOS","76/70",3,null,"13º","BARRA PESADA","HENRIQUE","TRÊS RIOS","50/120",3,null,"13º","PESADELO","ALEX LAMA","PARAÍBA DO SUL","54/108",3]
["14º","MANDA CHUVA","LUIS/ZECA","PATY DO ALFERES","93/111",2,null,"14º","JAMELÃO","FAMÍLIA MINGAL","PARAÍBA DO SUL","BANHO/62",2,null,"14º","PALHAÇO","PAULINHO","TRÊS RIOS","45/119",2,null,"14º","PEPE","EULER","TRÊS RIOS","106/106",2]
["15º","VIOLENTO","WALTER MORELI","PETRÓPOLIS","85/111",1,null,"15º",null,null,null,null,null,null,"15º","LOUCURA","WAGNER","ALÉM PARAÍBA","116/117",1,null,"15º","JAMELÃO","FAMÍLIA MINGAL","PARAÍBA DO SUL","64/105",1]
["16º","CARIOQUINHA","JONAS RICARDO","TRÊS RIOS","75/107",null,null,"16º",null,null,null,null,null,null,"16º","CAPITÃO","JOSÉ SÉRGIO","PARAÍBA DO SUL","109/115",null,null,"16º","MANDEI","FÁBIO MARTINS","TRÊS RIOS","93/98"]
["17º","WALTER","JONAS RICARDO","TRÊS RIOS","90/101",null,null,"17º",null,null,null,null,null,null,"17º","TROVÃO","LUCIMAR/LUIZ HENRIQUE","TRÊS RIOS","60/104",null,null,"17º","HORUS","DANILO","PARAÍBA DO SUL","64/97"]
["18º","PROFETA","ITALLO","PARAÍBA DO SUL","92/100",null,null,"18º",null,null,null,null,null,null,"18º","MALVADÃO","RODRIGO GONÇALVES","PETRÓPOLIS","86/103",null,null,"18º","ESTRELA","ALEX LAMA","PARAÍBA DO SUL","40/96"]
["19º","MEGAMENTE","FLÁVIO","PATY DO ALFERES",100,null,null,"19º",null,null,null,null,null,null,"19º","FANTÁSTICO","JOSÉ SÉRGIO","PARAÍBA DO SUL","72/102",null,null,"19º","PARDAL","WILLIAN","PARAÍBA DO SUL","44/93"]
["20º","LABAREDA","RAFAEL SOUZA","NITERÓI","79/98",null,null,"20º",null,null,null,null,null,null,"20º","FERA","JESSE JÚNIOR","TRÊS RIOS","50/93",null,null,"20º","SAGAT","TROPA DO MORRO","ALÉM PARAÍBA","76/90"]
["21º","DODGE RAM","JACKAN","PARAÍBA DO SUL","51/96",null,null,"21º",null,null,null,null,null,null,"21º","EXPLOSÃO","TIAGO","PARAÍBA DO SUL","67/92",null,null,"21º","MANDA CHUVA","LUIS/ZECA",null,"78/84"]
["22º","JAMELÃO","FAMÍLIA MINGAL","PARAÍBA DO SUL","103/94",null,null,"22º",null,null,null,null,null,null,"22º","GAROTO","BRUNO","TRÊS RIOS","97/88",null,null,"22º","V6","MARCOS VINÍCIUS","PARAÍBA DO SUL","69/84"]
["23º","BUDDY POKER","PEZÃO","TRÊS RIOS","78/94",null,null,"23º",null,null,null,null,null,null,"23º","SARRAFO","JONAS RICARDO","TRÊS RIOS","72/68",null,null,"23º","ASTRO","FAMÍLIA MINGAL","PARAÍBA DO SUL","56/79"]
["24º","FAISCA","GABRIEL/MARLON","PARAÍBA DO SUL","81/92",null,null,"24º",null,null,null,null,null,null,"24º","PRÍNCIPE","FAMÍLIA HONORATO","PARAÍBA DO SUL","66/68",null,null,"24º","SAGAT","GUSTAVO","PARAÍBA DO SUL","70/75"]
["25º","LOCOMOTIVA","CLOVIS/RODRIGO","TRÊS RIOS","104/90",null,null,"25º",null,null,null,null,null,null,"25º","PARDAL","FAMÍLIA MINGAL","PARAÍBA DO SUL","44/67",null,null,"25º","GAROTO","BRUNO RAÇÕES","TRÊS RIOS","98/74"]
["26º","PESADELO","ALEX LAMA","PARAÍBA DO SUL","83/89",null,null,"26º",null,null,null,null,null,null,"26º","BADARO","ÍTALO SANTOS","PARAÍBA DO SUL","61/65",null,null,"26º","SOBRENATURAL","FAMÍLIA MINGAL","PARAÍBA DO SUL","77/70"]
["27º","SOBRENATURAL","FAMÍLIA MINGAL","PARAÍBA DO SUL","72/89",null,null,"27º",null,null,null,null,null,null,"27º","GRANADA","CARLOS ALBERTO","PARAÍBA DO SUL","81/64",null,null,"27º","MATUÊ","RODRIGO GONÇALVES","PETRÓPOLIS","62/70"]
["28º","PARDAL","FAMÍLIA MINGAL","PARAÍBA DO SUL","58/89",null,null,"28º",null,null,null,null,null,null,"28º","TORPEDO","DAVISON","TRÊS RIOS","80/63",null,null,"28º","FILHOTE","FAMÍLIA MINGAL","PARAÍBA DO SUL","46/70"]
["29º","MANDEI","FABINHO","TRÊS RIOS","105/85",null,null,"29º",null,null,null,null,null,null,"29º","ESTRELA","ALEX LAMA","PARAÍBA DO SUL","81/62",null,null,"29º","CHAPOLIN","JOÃO ALVES","TRÊS RIOS","59/64"]
["30º","MARRETA","ROMÁRIO","PETRÓPOLIS","83/85",null,null,"30º",null,null,null,null,null,null,"30º","BUDDY POKER","PEZÃO","TRÊS RIOS","73/60",null,null,"30º","LAS VEGAS","JONATAN","MATIAS BARBOSA","42/50"]
["31º","GAROTO","BRUNO","TRÊS RIOS","87/84",null,null,"31º",null,null,null,null,null,null,"31º","CONOR","HÉRCULES","TRÊS RIOS","53/53",null,null,"31º"]
["32º","CABARÉ","DIDO","PATY DO ALFERES","101/82",null,null,"32º",null,null,null,null,null,null,"32º","POPÓ","BRUNO","TRÊS RIOS","56/49",null,null,"32º"]
["33º","PELE","WILLIAM","TRÊS RIOS","93/80",null,null,"33º",null,null,null,null,null,null,"33º","GRAU","LUIS FELIPPE","PATY DO ALFERES","60/48",null,null,"33º"]
["34º","CARA PRETA","FÁBIO","TRÊS RIOS","67/80",null,null,"34º",null,null,null,null,null,null,"34º","ZURIQUE","JONATHAN","TRÊS RIOS","52/37",null,null,"34º"]
["35º","DJ","FAMÍLIA HONORATO","PARAÍBA DO SUL","63/75",null,null,"35º",null,null,null,null,null,null,"35º","SOBRENATURAL","FAMÍLIA MINGAL","PARAÍBA DO SUL","58/34",null,null,"35º"]
["36º","TO LOUCO","ÍCARO DIAS","PARAÍBA DO SUL","80/74",null,null,"36º",null,null,null,null,null,null,"36º",null,null,null,null,null,null,"36º"]
["37º","PANTERA","EDER","TRÊS RIOS","77/74",null,null,"37º",null,null,null,null,null,null,"37º",null,null,null,null,null,null,"37º"]
["38º","OROCHI","NATHAN","LEVY GASPARIAN","73/74",null,null,"38º",null,null,null,null,null,null,"38º",null,null,null,null,null,null,"38º"]
["39º","PLAY BOY","JESSÉ JÚNIOR","TRÊS RIOS","52/73",null,null,"39º",null,null,null,null,null,null,"39º",null,null,null,null,null,null,"39º"]
["40º","TORPEDO","SANDRINHO","TRÊS RIOS","93/70",null,null,"40º",null,null,null,null,null,null,"40º",null,null,null,null,null,null,"40º"]
["41º","MÁGICO","FÁBIO","TRÊS RIOS","53/63"]
["42º","DOPADO","SAMUEL","PARAÍBA DO SUL","52/56"]

{"sheet":"dez2024","index":3,"n_rows":42,"n_cols":34,"rows_kept":42,"cut":false,"hidden":false,"merged":[[0,0,0,5],[0,7,0,12],[0,14,0,19],[0,21,0,26],[0,28,0,33]]}
["01/12/2024 (Domingo)",null,null,null,null,null,null,"08/12/2024 (Domingo)",null,null,null,null,null,null,"15/12/2024 (Domingo)",null,null,null,null,null,null,"22/12/2024 (Domingo)",null,null,null,null,null,null,"29/12/2024 (Domingo)"]
["POS.","PÁSSARO","PROPRIETÁRIO","ORIGEM","CANTOS","PONTOS",null,"POS.","PÁSSARO","PROPRIETÁRIO","ORIGEM","CANTOS","PONTOS",null,"POS.","PÁSSARO","PROPRIETÁRIO","ORIGEM","CANTOS","PONTOS",null,"POS.","PÁSSARO","PROPRIETÁRIO","ORIGEM","CANTOS","PONTOS",null,"POS.","PÁSSARO","PROPRIETÁRIO","ORIGEM","CANTOS","PONTOS"]
["1º","MAVERICK","MARCÃO","JUIZ DE FORA","155/193",30,null,"1º","BOLT","RUAN","MAR DE ESPANHA","197/223",30,null,"1º","LAMBADA","DANIEL","TRÊS RIOS","123/197",30,null,"1º","GATILHO","JUNINHO","SAPUCAIA",214,30,null,"1º",null,null,null,null,30]
["2º","REI DO FURDUNÇO","WILLIAN","TRÊS RIOS","108/181",25,null,"2º","FAVELA","CABRITO","MATIAS BARBOSA","130/191",25,null,"2º","FABULOSO","ERICK","MATIAS BARBOSA","157/158",25,null,"2º","PARDAL","FAMÍLIA MINGAL","PARAÍBA DO SUL",190,25,null,"2º",null,null,null,null,25]
["3º","LAMPIÃO","LUIS/ZECA","PATY DO ALFERES","121/179",20,null,"3º","NARUTO","MARCIO MOREIRA","TRÊS RIOS","113/180",20,null,"3º","JAMELÃO","FAMÍLIA MINGAL","PARAÍBA DO SUL","99/138",20,null,"3º","REI DO FURDUNÇO","WILLIAN","TRÊS RIOS",158,20,null,"3º",null,null,null,null,20]
["4º","MATADOR","GABRIEL MARTINS","PARAÍBA DO SUL","102/170",17,null,"4º","PELÉ","ANTERO/WILLIAN","TRÊS RIOS","118/171",17,null,"4º","REI DO FURDUNÇO","WILLIAN","TRÊS RIOS","108/129",17,null,"4º","PIRATA","ERICK","MATIAS BARBOSA",148,17,null,"4º",null,null,null,null,17]
["5º","MALUCO","VANDERSON","JUIZ DE FORA","106/157",14,null,"5º","REI DO FURDUNÇO","WILLIAN","TRÊS RIOS","103/166",14,null,"5º","WALTER","JONAS RICARDO","TRÊS RIOS","113/122",14,null,"5º","CHUCALHO DE COBRA","LUCIMAR/LUIZ HENRIQUE","TRÊS RIOS",146,14,null,"5º",null,null,null,null,14]
["6º","MALVADÃO","RODRIGO GONÇALVES","PETRÓPOLIS","94/147",12,null,"6º","VINGADOR","SILVINHO","SANTOS DUMONT","89/151",12,null,"6º","MALVADÃO","RODRIGO GONÇALVES","PETRÓPOLIS","90/119",12,null,"6º","VENON","MURILO","TRÊS RIOS",142,12,null,"6º",null,null,null,null,12]
["7º","BAIXARIA","RAUANI VALLE","TRÊS RIOS","108/140",10,null,"7º","MALVADÃO","RODRIGO GONÇALVES","PETRÓPOLIS","95/147",10,null,"7º","IMPÉRIO","LUIZINHO","PETRÓPOLIS","56/118",10,null,"7º","BMW","JOÃO PEDRO","PARAÍBA DO SUL",133,10,null,"7º",null,null,null,null,10]
["8º","REI DA RUA","ANDRÉ LUIS","PARAÍBA DO SUL","110/134",8,null,"8º","SOBRENATURAL","FAMÍLIA MINGAL","PARAÍBA DO SUL","85/140",8,null,"8º","SONIC","JANDERSON","TRÊS RIOS","66/105",8,null,"8º","MATUÊ","RODRIGO GONÇALVES","PETRÓPOLIS",124,8,null,"8º",null,null,null,null,8]
["9º","VENON","MURILO","TRÊS RIOS","70/133",7,null,"9º","PEPE","EULER","TRÊS RIOS","105/137",7,null,"9º","DOIDO","WILLIAM","TRÊS RIOS","126/101",7,null,"9º","XARADA","FAMÍLIA MINGAL","PARAÍBA DO SUL",119,7,null,"9º",null,null,null,null,7]
["10º","MATUÊ","RODRIGO GONÇALVES","PETRÓPOLIS","107/127",6,null,"10º","CASCAVEL","BRUNO BRANCO","PETRÓPOLIS","117/133",6,null,"10º","PROFESSOR","FAMÍLIA MINGAL","PARAÍBA DO SUL","97/96",6,null,"10º","JHON NETO","MATHEUS/JEFERSON","PARAÍBA DO SUL",118,6,null,"10º",null,null,null,null,6]
["11º","CARTOLA","FABIANO","TRÊS RIOS","103/121",5,null,"11º","MOSTRINHO","VITINHO","MATIAS BARBOSA","97/125",5,null,"11º","CABALLO","GILSON","SANTOS DUMONT","52/91",5,null,"11º","CABALA","SANDRINHO","TRÊS RIOS",116,5,null,"11º",null,null,null,null,5]
["12º","MARRETA","GUTO","PARAÍBA DO SUL","56/120",4,null,"12º","GIGOLO","CABRITO","MATIAS BARBOSA","81/122",4,null,"12º","PALADINO","LUCAS","TRÊS RIOS","89/90",4,null,"12º","WALTER","JONAS RICARDO","TRÊS RIOS",110,4,null,"12º",null,null,null,null,4]
["13º","LA PULGA","VINÍCIUS","MAR DE ESPANHA","62/117",3,null,"13º","VENON","MURILO","TRÊS RIOS","48/118",3,null,"13º","PROFESSOR","RODRIGO GONÇALVES","PETRÓPOLIS","41/88",3,null,"13º","MALVADÃO","RODRIGO GONÇALVES","PETRÓPOLIS",103,3,null,"13º",null,null,null,null,3]
["14º","CORINGA","ERICK","MATIAS BARBOSA","56/117",2,null,"14º","PROFESSOR","RODRIGO GONÇALVES","PETRÓPOLIS","60/112",2,null,"14º","RENEGADO","DEIVID","JUIZ DE FORA","41/79",2,null,"14º","PEPE","EULER","TRÊS RIOS",100,2,null,"14º",null,null,null,null,2]
["15º","MUTUM","MARCELO","SANTOS DUMONT","100/111",1,null,"15º","PODEROSO CHEFINHO","BRUNO BRANCO","PETRÓPOLIS","97/109",1,null,"15º","007","GUSTAVO","TRÊS RIOS","67/69",1,null,"15º","GAGUINHO","LUCIMAR/LUIZ HENRIQUE","TRÊS RIOS",92,1,null,"15º",null,null,null,null,1]
["16º","ARQUEIRO","GILSON","SANTOS DUMONT","60/107",null,null,"16º","LAS VEGAS","JONATAN","MATIAS BARBOSA","62/102",null,null,"16º","PLAY BOY","JESSÉ JÚNIOR","TRÊS RIOS","75/66",null,null,"16º","PICA PAU","ADÃO","TRÊS RIOS",89,null,null,"16º"]
["17º","REALEZA","VINÍCIUS","AREAL","49/105",null,null,"17º","CORONEL","PEDRO LUCAS","PARAÍBA DO SUL","71/92",null,null,"17º","LAMBORGHINI","ALEXANDRE","SOUZA AGUIAR","74/54",null,null,"17º","PCX","UILIAN","TRÊS RIOS",87,null,null,"17º"]
["18º","TAGARELA","PIA","SANTOS DUMONT","115/100",null,null,"18º","WILLIAN","FAMÍLIA MINGAL","PARAÍBA DO SUL","47/86",null,null,"18º","FERA","JESSÉ JÚNIOR","TRÊS RIOS","69/50",null,null,"18º","TARJA PRETA","WARLISON","SAPUCAIA",83,null,null,"18º"]
["19º","ZORRO","LEONEL","SANTOS DUMONT","71/99",null,null,"19º","SAGAT","GUSTAVO","PARAÍBA DO SUL","107/85",null,null,"19º","BIRO BIRO","LEVY","TRÊS RIOS","115/47",null,null,"19º","XERIFE","SERGINHO","PARAÍBA DO SUL",83,null,null,"19º"]
["20º","UBER","POLIDARIO","PARAÍBA DO SUL","76/95",null,null,"20º","007","GUSTAVO","PARAÍBA DO SUL","72/85",null,null,"20º","VAI E VEM","SASSÁ","PARAÍBA DO SUL","50/31",null,null,"20º","FALCÃO","MAURO JR","TRÊS RIOS",79,null,null,"20º"]
["21º","JAMELÃO","FAMÍLIA MINGAL","PARAÍBA DO SUL","72/93",null,null,"21º","IMPÉRIO","LUIZINHO","PETRÓPOLIS","129/77",null,null,"21º",null,null,null,null,null,null,"21º","V6","MARCOS VINÍCIUS","PARAÍBA DO SUL",69,null,null,"21º"]
["22º","SABOTAGEM","HARRISON","SANTOS DUMONT","87/88",null,null,"22º","SEM UNHA","VITINHO","MATIAS BARBOSA","74/74",null,null,"22º",null,null,null,null,null,null,"22º","TICO TICO","FAMÍLIA HONORATO","PARAÍBA DO SUL",68,null,null,"22º"]
["23º","FERA","JESSÉ JÚNIOR","TRÊS RIOS","65/85",null,null,"23º","POPO","GIBA","TRÊS RIOS","61/71",null,null,"23º",null,null,null,null,null,null,"23º","ENCANTADO","EULER","TRÊS RIOS",56,null,null,"23º"]
["24º","PALADINO","LUCAS","TRÊS RIOS","81/83",null,null,"24º","V8","WILIAN","TRÊS RIOS","57/70",null,null,"24º",null,null,null,null,null,null,"24º","REVELAÇÃO","JONATHAN FORTUNA","TRÊS RIOS",41,null,null,"24º"]
["25º","PICA PAU","ADÃO","TRÊS RIOS","76/82",null,null,"25º","BUDDY POKER","THIAGO","TRÊS RIOS","48/66",null,null,"25º",null,null,null,null,null,null,"25º",null,null,null,null,null,null,"25º"]
["26º","SAGAT","GUSTAVO","PARAÍBA DO SUL","52/82",null,null,"26º","SEM LIMITE","LUCAS","MATIAS BARBOSA","91/60",null,null,"26º",null,null,null,null,null,null,"26º",null,null,null,null,null,null,"26º"]
["27º","TZ","GABRIEL","TRÊS RIOS","41/67",null,null,"27º","A LENDA","STENIO","MATIAS BARBOSA","50/53",null,null,"27º",null,null,null,null,null,null,"27º",null,null,null,null,null,null,"27º"]
["28º","MC DONALD'S","JESSÉ JÚNIOR","TRÊS RIOS","50/61",null,null,"28º","JHON NETO","MATHEUS/JEFERSON","PARAÍBA DO SUL","46/41",null,null,"28º",null,null,null,null,null,null,"28º",null,null,null,null,null,null,"28º"]
["29º","CALIBRE","MARCELO","SANTOS DUMONT","66/54",null,null,"29º",null,null,null,null,null,null,"29º",null,null,null,null,null,null,"29º",null,null,null,null,null,null,"29º"]
["30º","TORPEDO","DAVISON","TRÊS RIOS","52/54",null,null,"30º",null,null,null,null,null,null,"30º",null,null,null,null,null,null,"30º",null,null,null,null,null,null,"30º"]
["31º","007","GUSTAVO","PARAÍBA DO SUL","42/52",null,null,"31º",null,null,null,null,null,null,"31º",null,null,null,null,null,null,"31º",null,null,null,null,null,null,"31º"]
["32º","MARGINAL","BRUNO","TRÊS RIOS","41/44",null,null,"32º",null,null,null,null,null,null,"32º",null,null,null,null,null,null,"32º",null,null,null,null,null,null,"32º"]
["33º",null,null,null,null,null,null,"33º",null,null,null,null,null,null,"33º",null,null,null,null,null,null,"33º",null,null,null,null,null,null,"33º"]
["34º",null,null,null,null,null,null,"34º",null,null,null,null,null,null,"34º",null,null,null,null,null,null,"34º",null,null,null,null,null,null,"34º"]
["35º",null,null,null,null,null,null,"35º",null,null,null,null,null,null,"35º",null,null,null,null,null,null,"35º",null,null,null,null,null,null,"35º"]
["36º",null,null,null,null,null,null,"36º",null,null,null,null,null,null,"36º",null,null,null,null,null,null,"36º",null,null,null,null,null,null,"36º"]
["37º",null,null,null,null,null,null,"37º",null,null,null,null,null,null,"37º",null,null,null,null,null,null,"37º",null,null,null,null,null,null,"37º"]
["38º",null,null,null,null,null,null,"38º",null,null,null,null,null,null,"38º",null,null,null,null,null,null,"38º",null,null,null,null,null,null,"38º"]
["39º",null,null,null,null,null,null,"39º",null,null,null,null,null,null,"39º",null,null,null,null,null,null,"39º",null,null,null,null,null,null,"39º"]
["40º",null,null,null,null,null,null,"40º",null,null,null,null,null,null,"40º",null,null,null,null,null,null,"40º",null,null,null,null,null,null,"40º"]